bitfinex-derivatives/quotes_BTCF0:USTF0_20260207
["timestamp","ask_amount","ask_price","bid_price","bid_amount"]
[1770433434946,0.014182,70556.0,70540.0,0.014185]
[1770433435143,0.07770171,70557.0,70538.0,0.0843397]
[1770433435342,0.07770171,70565.0,70551.0,0.014183]
[1770433435544,0.07770171,70572.0,70550.0,0.014183]
[1770433436041,0.01418,70568.0,70547.0,0.014184]
[1770433436245,0.09188271,70565.0,70544.0,0.014185]
[1770433436442,0.09188471,70555.0,70529.0,0.19736444]
[1770433436640,0.09188471,70555.0,70536.0,0.014186]
[1770433437345,0.09188471,70553.0,70536.0,0.014186]
[1770433437546,0.09188471,70553.0,70523.0,0.0843397]
[1770433437948,0.09188471,70553.0,70537.0,0.014186]
[1770433438740,0.07770171,70546.0,70528.0,0.014188]
[1770433438944,0.07770171,70546.0,70530.0,0.014187]
[1770433439141,0.014181,70561.0,70526.0,0.014188]
[1770433439142,0.014185,70543.0,70526.0,0.014188]
[1770433439542,0.014185,70543.0,70528.0,0.014188]
[1770433440139,0.07770171,70545.0,70524.0,0.0843397]
[1770433440344,0.014183,70551.0,70535.0,0.014186]
[1770433441143,0.09188471,70554.0,70537.0,0.014186]
[1770433441347,0.014183,70552.0,70537.0,0.014186]
[1770433441739,0.07770171,70549.0,70525.0,0.0843397]
[1770433442049,0.07770171,70549.0,70534.0,0.014187]
[1770433442354,0.07770171,70549.0,70536.0,0.014186]
[1770433442543,0.014182,70556.0,70527.0,0.0843397]
[1770433442743,0.014182,70556.0,70516.0,0.01419]
[1770433442744,0.07770171,70558.0,70542.0,0.014185]
[1770433443253,0.014179,70575.0,70534.0,0.014187]
[1770433443254,0.014183,70551.0,70534.0,0.014187]
[1770433443549,0.07770171,70556.0,70531.0,0.0843397]
[1770433444048,0.014183,70555.0,70531.0,0.0843397]
[1770433444248,0.014183,70555.0,70539.0,0.014186]
[1770433444552,0.07770171,70554.0,70536.0,0.014186]
[1770433444750,0.014184,70548.0,70533.0,0.014187]
[1770433446247,0.09149047,70547.0,70523.0,0.0843397]
[1770433446449,0.09149047,70545.0,70524.0,0.014189]
[1770433446751,0.09149047,70539.0,70524.0,0.014189]
[1770433446948,0.09149047,70539.0,70525.0,0.21305009]
[1770433447147,0.014186,70537.0,70526.0,0.21305009]
[1770433447447,0.10567647,70538.0,70523.0,0.16963221]
[1770433447648,0.10567647,70538.0,70524.0,0.21305342]
[1770433447955,0.10567647,70538.0,70523.0,0.16963221]
[1770433447956,0.10567647,70538.0,70525.0,0.21305342]
[1770433448254,0.09149047,70538.0,70519.0,0.16963221]
[1770433448551,0.014188,70530.0,70515.0,0.16963221]
[1770433448758,0.014188,70530.0,70513.0,0.18382321]
[1770433449141,0.014188,70530.0,70513.0,0.014191]
[1770433449345,0.014188,70527.0,70511.0,0.16963221]
[1770433449543,0.014185,70545.0,70507.0,0.014192]
[1770433449544,0.09728306,70525.0,70507.0,0.014192]
[1770433450053,0.014189,70524.0,70507.0,0.014192]
[1770433450448,0.014189,70521.0,70504.0,0.014193]
[1770433450649,0.11147206,70521.0,70501.0,0.18382521]
[1770433450851,0.01419,70519.0,70501.0,0.014193]
[1770433451452,0.09728306,70521.0,70498.0,0.28186879]
[1770433451652,0.09728306,70521.0,70498.0,0.11223658]
[1770433451853,0.01419,70517.0,70500.0,0.014193]
[1770433452654,0.014191,70513.0,70498.0,0.09804258]
[1770433452854,0.01419,70516.0,70498.0,0.11223658]
[1770433454847,0.09728306,70518.0,70500.0,0.014193]
[1770433455046,0.01419,70517.0,70498.0,0.09804258]
[1770433455251,0.01419,70517.0,70499.0,0.014194]
[1770433457353,0.01419,70517.0,70499.0,0.11223658]
[1770433458055,0.09728306,70518.0,70499.0,0.09804258]
[1770433458250,0.014193,70502.0,70487.0,0.014196]
[1770433458460,0.014193,70502.0,70484.0,0.11223958]
[1770433458959,0.014194,70497.0,70480.0,0.014197]
[1770433461264,0.014193,70506.0,70487.0,0.09804258]
[1770433461451,0.014193,70506.0,70488.0,0.11223858]
[1770433462763,0.014193,70504.0,70488.0,0.11223858]
[1770433463665,0.014193,70502.0,70485.0,0.014196]
[1770433463862,0.11147606,70502.0,70485.0,0.014196]
[1770433465461,0.11147606,70502.0,70487.0,0.014196]
[1770433465861,0.014194,70500.0,70484.0,0.014197]
[1770433467167,0.014194,70500.0,70486.0,0.014196]
[1770433468764,0.09728306,70539.0,70504.0,0.09804258]
[1770433468963,0.01419,70519.0,70499.0,0.014194]
[1770433469169,0.01419,70517.0,70501.0,0.014193]
[1770433470270,0.11147306,70520.0,70503.0,0.014193]
[1770433473176,0.11147306,70520.0,70479.0,0.28132459]
[1770433473177,0.014188,70530.0,70514.0,0.11223358]
[1770433473376,0.09728306,70527.0,70499.0,0.16963221]
[1770433473582,0.11147306,70519.0,70503.0,0.014193]
[1770433475373,0.09728306,70519.0,70498.0,0.09804258]
[1770433475575,0.11147406,70515.0,70491.0,0.09804258]
[1770433475874,0.11147406,70515.0,70491.0,0.26767479]
[1770433476070,0.01419,70520.0,70493.0,0.12972941]
[1770433476275,0.13780787,70520.0,70495.0,0.12972941]
[1770433476476,0.014188,70526.0,70497.0,0.12972941]
[1770433476677,0.014189,70524.0,70502.0,0.12972941]
[1770433476971,0.014189,70524.0,70505.0,0.12972941]
[1770433478580,0.014187,70533.0,70517.0,0.14391941]
[1770433478784,0.014187,70531.0,70517.0,0.12972941]
[1770433479590,0.014188,70529.0,70517.0,0.12972941]
[1770433480388,0.014188,70529.0,70514.0,0.014191]
[1770433480590,0.014189,70525.0,70509.0,0.12972941]
[1770433481790,0.014189,70525.0,70508.0,0.014192]
[1770433482090,0.01419,70518.0,70502.0,0.12972941]
[1770433484490,0.12361787,70535.0,70504.0,0.12972941]
[1770433484691,0.014189,70523.0,70509.0,0.12972941]
[1770433485793,0.014189,70521.0,70509.0,0.12972941]
[1770433486393,0.12361787,70532.0,70509.0,0.12972941]
[1770433486696,0.12361787,70532.0,70511.0,0.14392041]
[1770433487489,0.014188,70528.0,70513.0,0.14392041]
[1770433488500,0.014187,70531.0,70513.0,0.14392041]
[1770433488799,0.014188,70529.0,70513.0,0.14392041]
[1770433489002,0.014188,70527.0,70513.0,0.12972941]
[1770433491705,0.014188,70530.0,70516.0,0.01419]
[1770433491904,0.014188,70530.0,70516.0,0.14391941]
[1770433493501,0.014187,70533.0,70516.0,0.14391941]
[1770433493697,0.12361787,70539.0,70519.0,0.12972941]
[1770433494006,0.014186,70538.0,70522.0,0.014189]
[1770433494701,0.014186,70536.0,70522.0,0.014189]
[1770433495306,0.014187,70534.0,70519.0,0.14391941]
[1770433495508,0.12361787,70529.0,70504.0,0.12972941]
[1770433495700,0.014189,70522.0,70506.0,0.14392141]
[1770433496908,0.014189,70522.0,70507.0,0.21311312]
[1770433497108,0.014189,70522.0,70506.0,0.14392141]
[1770433497309,0.014189,70522.0,70507.0,0.21311312]
[1770433497610,0.014189,70522.0,70507.0,0.11335574]
[1770433498007,0.014184,70546.0,70507.0,0.11335574]
[1770433498008,0.12361787,70523.0,70507.0,0.11335574]
[1770433498309,0.014191,70514.0,70502.0,0.11335574]
[1770433498610,0.014191,70514.0,70500.0,0.11335574]
[1770433499199,0.014191,70514.0,70499.0,0.29936162]
[1770433499407,0.014191,70514.0,70499.0,0.24316757]
[1770433499706,0.014191,70514.0,70499.0,0.12972941]
[1770433500104,0.12361787,70517.0,70498.0,0.11343816]
[1770433500411,0.014196,70489.0,70479.0,0.002]
[1770433500707,0.014196,70489.0,70469.0,0.12972941]
[1770433501013,0.014196,70489.0,70470.0,0.0142]
[1770433501216,0.014196,70489.0,70470.0,0.14392941]
[1770433501410,0.12361787,70494.0,70470.0,0.12972941]
[1770433501609,0.014198,70477.0,70459.0,0.12972941]
[1770433501803,0.014197,70484.0,70463.0,0.14393041]
[1770433502114,0.014197,70484.0,70463.0,0.12972941]
[1770433502612,0.014196,70488.0,70468.0,0.12972941]
[1770433502806,0.014196,70488.0,70467.0,0.0142]
[1770433502807,0.014197,70485.0,70470.0,0.12972941]
[1770433503108,0.014197,70483.0,70470.0,0.12972941]
[1770433503510,0.014197,70483.0,70462.0,0.12972941]
[1770433503712,0.014197,70483.0,70465.0,0.14393041]
[1770433505019,0.014196,70487.0,70468.0,0.0142]
[1770433505715,0.014197,70485.0,70465.0,0.14393041]
[1770433507111,0.014198,70481.0,70465.0,0.12972941]
[1770433508220,0.014198,70479.0,70465.0,0.12972941]
[1770433509909,0.014199,70476.0,70465.0,0.12972941]
[1770433511015,0.014198,70479.0,70465.0,0.12972941]
[1770433512117,0.014195,70493.0,70457.0,0.15121235]
[1770433512118,0.15390518,70476.0,70457.0,0.15121235]
[1770433512318,0.014199,70472.0,70457.0,0.15121235]
[1770433512523,0.0142,70470.0,70457.0,0.15121235]
[1770433513416,0.0142,70470.0,70451.0,0.014203]
[1770433513617,0.0142,70470.0,70451.0,0.16541535]
[1770433514609,0.0142,70470.0,70453.0,0.014203]
[1770433514813,0.014199,70473.0,70454.0,0.15121235]
[1770433515022,0.15390518,70473.0,70447.0,0.15121235]
[1770433515320,0.014201,70465.0,70447.0,0.15121235]
[1770433515518,0.15390518,70471.0,70447.0,0.15121235]
[1770433515710,0.15390518,70471.0,70449.0,0.15121235]
[1770433515911,0.15390518,70471.0,70430.0,0.014208]
[1770433515912,0.15390518,70471.0,70451.0,0.15121235]
[1770433516111,0.014199,70472.0,70457.0,0.15121235]
[1770433516321,0.15390518,70481.0,70457.0,0.15121235]
[1770433516521,0.0142,70470.0,70457.0,0.15121235]
[1770433516916,0.0142,70468.0,70457.0,0.15121235]
[1770433517117,0.014199,70472.0,70457.0,0.15121235]
[1770433517317,0.014199,70475.0,70457.0,0.15121235]
[1770433517616,0.0142,70471.0,70457.0,0.15121235]
[1770433518318,0.070974,70496.0,70457.0,0.15121235]
[1770433518319,0.15390518,70490.0,70457.0,0.15121235]
[1770433518516,0.014198,70479.0,70463.0,0.15121235]
[1770433518717,0.014193,70504.0,70456.0,0.15121235]
[1770433518718,0.014199,70472.0,70456.0,0.15121235]
[1770433518921,0.014198,70477.0,70458.0,0.014202]
[1770433519117,0.014198,70477.0,70458.0,0.16541435]
[1770433519318,0.014199,70475.0,70458.0,0.16541435]
[1770433519718,0.014199,70472.0,70458.0,0.15121235]
[1770433521432,0.014199,70475.0,70458.0,0.15121235]
[1770433521725,0.014198,70478.0,70460.0,0.15121235]
[1770433521920,0.014199,70476.0,70460.0,0.15121235]
[1770433522228,0.014197,70482.0,70465.0,0.15121235]
[1770433522720,0.014198,70480.0,70465.0,0.15121235]
[1770433523026,0.014199,70472.0,70458.0,0.15121235]
[1770433523819,0.014197,70484.0,70451.0,0.15121235]
[1770433523820,0.0142,70468.0,70451.0,0.15121235]
[1770433524622,0.15390518,70475.0,70451.0,0.15121235]
[1770433524623,0.0142,70466.0,70451.0,0.15121235]
[1770433525630,0.0142,70471.0,70453.0,0.15121235]
[1770433527430,0.014199,70474.0,70459.0,0.15121235]
[1770433528030,0.014198,70477.0,70460.0,0.16541435]
[1770433528726,0.014198,70480.0,70462.0,0.16541335]
[1770433528927,0.014198,70480.0,70465.0,0.15121235]
[1770433530022,0.014197,70483.0,70465.0,0.15121235]
[1770433530533,0.014198,70481.0,70465.0,0.15121235]
[1770433530935,0.014195,70491.0,70465.0,0.15121235]
[1770433530936,0.014198,70477.0,70465.0,0.15121235]
[1770433531233,0.014199,70475.0,70458.0,0.014202]
[1770433531422,0.014199,70473.0,70458.0,0.014202]
[1770433532627,0.014199,70476.0,70458.0,0.014202]
[1770433532826,0.014199,70476.0,70458.0,0.16541435]
[1770433533626,0.014199,70476.0,70460.0,0.014202]
[1770433534231,0.014199,70476.0,70460.0,0.16541435]
[1770433534432,0.014198,70479.0,70460.0,0.16541435]
[1770433535432,0.42413372,70494.0,70460.0,0.15121235]
[1770433535633,0.014196,70487.0,70472.0,0.15121235]
[1770433535834,0.014197,70485.0,70472.0,0.15121235]
[1770433536031,0.014196,70488.0,70472.0,0.15121235]
[1770433536231,0.15390518,70496.0,70472.0,0.15121235]
[1770433536232,0.014197,70486.0,70472.0,0.15121235]
[1770433536738,0.014197,70484.0,70472.0,0.15121235]
[1770433537234,0.15936074,70493.0,70462.0,0.15842742]
[1770433537832,0.014198,70480.0,70462.0,0.15842742]
[1770433538340,0.014198,70480.0,70463.0,0.17262842]
[1770433539343,0.15936074,70492.0,70471.0,0.15842742]
[1770433539641,0.15936074,70498.0,70471.0,0.15842742]
[1770433539838,0.014197,70485.0,70471.0,0.15842742]
[1770433540142,0.15936074,70496.0,70471.0,0.15842742]
[1770433540941,0.15936074,70493.0,70471.0,0.15842742]
[1770433541340,0.15936074,70491.0,70471.0,0.15842742]
[1770433541533,0.15936074,70489.0,70462.0,0.15842742]
[1770433541739,0.014198,70476.0,70462.0,0.15842742]
[1770433541933,0.15936074,70486.0,70462.0,0.15842742]
[1770433542335,0.15936074,70483.0,70462.0,0.15842742]
[1770433542548,0.014199,70474.0,70455.0,0.17263042]
[1770433542742,0.0142,70470.0,70455.0,0.15842742]
[1770433543038,0.15936074,70477.0,70455.0,0.01598565]
[1770433543431,0.15936074,70477.0,70452.0,0.014203]
[1770433543637,0.15936074,70477.0,70448.0,0.15842742]
[1770433544436,0.014201,70465.0,70448.0,0.17263142]
[1770433546845,0.15936074,70471.0,70448.0,0.15842742]
[1770433547440,0.014202,70461.0,70448.0,0.15842742]
[1770433547833,0.014201,70465.0,70448.0,0.15842742]
[1770433548239,0.014201,70465.0,70448.0,0.17263142]
[1770433549146,0.0142,70468.0,70451.0,0.15842742]
[1770433549947,0.0142,70468.0,70454.0,0.15842742]
[1770433550844,0.0142,70466.0,70454.0,0.15842742]
[1770433551647,0.014201,70464.0,70447.0,0.15842742]
[1770433551838,0.014201,70464.0,70448.0,0.17263142]
[1770433552034,0.014201,70462.0,70448.0,0.15842742]
[1770433553546,0.014201,70465.0,70448.0,0.15842742]
[1770433554249,0.0142,70466.0,70449.0,0.014204]
[1770433554548,0.014201,70464.0,70449.0,0.17263142]
[1770433555349,0.17355874,70480.0,70454.0,0.15842742]
[1770433555647,0.0142,70467.0,70454.0,0.15842742]
[1770433557349,0.17355874,70478.0,70454.0,0.15842742]
[1770433557535,0.0142,70468.0,70454.0,0.15842742]
[1770433557736,0.01400823,70468.0,70454.0,0.15842742]
[1770433558944,0.014197,70484.0,70457.0,0.15842742]
[1770433558945,0.014199,70473.0,70457.0,0.15842742]
[1770433559337,0.014197,70484.0,70460.0,0.014202]
[1770433559338,0.014198,70476.0,70460.0,0.014202]
[1770433559648,0.014199,70474.0,70461.0,0.15842742]
[1770433560238,0.15936074,70477.0,70450.0,0.15842742]
[1770433560543,0.15936074,70474.0,70452.0,0.15842742]
[1770433560746,0.0142,70470.0,70452.0,0.17263042]
[1770433560937,0.15936074,70472.0,70452.0,0.15842742]
[1770433561338,0.0142,70470.0,70452.0,0.15842742]
[1770433562343,0.0142,70470.0,70453.0,0.014203]
[1770433562651,0.0142,70470.0,70453.0,0.17263042]
[1770433564149,0.0142,70470.0,70443.0,0.21278419]
[1770433564150,0.15936074,70463.0,70443.0,0.15842742]
[1770433564650,0.014201,70462.0,70446.0,0.15842742]
[1770433564950,0.014202,70460.0,70446.0,0.15842742]
[1770433566454,0.16622263,70467.0,70446.0,0.15842742]
[1770433567146,0.014202,70460.0,70446.0,0.15842742]
[1770433570459,0.014201,70461.0,70446.0,0.15842742]
[1770433571468,0.014201,70462.0,70446.0,0.15842742]
[1770433572360,0.014201,70462.0,70446.0,0.17263142]
[1770433575357,0.014201,70465.0,70449.0,0.17304462]
[1770433575564,0.0142,70470.0,70455.0,0.17304462]
[1770433575763,0.16720273,70480.0,70455.0,0.18724762]
[1770433575964,0.014199,70471.0,70455.0,0.17304462]
[1770433577064,0.16720273,70480.0,70457.0,0.17304462]
[1770433577371,0.014198,70476.0,70461.0,0.17304462]
[1770433577566,0.014199,70474.0,70461.0,0.17304462]
[1770433578876,0.16720273,70488.0,70461.0,0.18724562]
[1770433579068,0.014198,70480.0,70464.0,0.17304462]
[1770433580270,0.014197,70483.0,70466.0,0.17304462]
[1770433580973,0.014198,70481.0,70466.0,0.17304462]
[1770433582373,0.014197,70484.0,70466.0,0.17304462]
[1770433582771,0.014197,70482.0,70466.0,0.17304462]
[1770433582973,0.014197,70482.0,70449.0,0.17022735]
[1770433582974,0.42413372,70500.0,70475.0,0.17304462]
[1770433583275,0.014194,70498.0,70478.0,0.17304462]
[1770433584972,0.014194,70498.0,70480.0,0.17304462]
[1770433585772,0.16720273,70502.0,70485.0,0.17304462]
[1770433585974,0.014193,70504.0,70487.0,0.17304462]
[1770433586275,0.014192,70507.0,70487.0,0.17304462]
[1770433586470,0.014193,70505.0,70489.0,0.17304462]
[1770433588681,0.16720273,70520.0,70495.0,0.17304462]
[1770433589072,0.01419,70518.0,70501.0,0.17304462]
[1770433590072,0.16720273,70520.0,70503.0,0.17304462]
[1770433590278,0.014189,70524.0,70507.0,0.17304462]
[1770433591175,0.014189,70524.0,70507.0,0.18723662]
[1770433591678,0.014188,70527.0,70507.0,0.18723662]
[1770433591875,0.16720273,70531.0,70507.0,0.17304462]
[1770433592275,0.014188,70526.0,70507.0,0.17304462]
[1770433592676,0.014189,70524.0,70507.0,0.17304462]
[1770433593882,0.01419,70518.0,70499.0,0.014194]
[1770433594074,0.18139273,70518.0,70500.0,0.17304462]
[1770433597183,0.18139273,70518.0,70501.0,0.18690651]
[1770433597875,0.1888765,70525.0,70504.0,0.17271351]
[1770433598074,0.014189,70522.0,70504.0,0.18690651]
[1770433598275,0.1888765,70522.0,70504.0,0.17271351]
[1770433600085,0.01419,70520.0,70504.0,0.17271351]
[1770433600781,0.1888765,70528.0,70509.0,0.014192]
[1770433601083,0.014188,70526.0,70510.0,0.17271351]
[1770433602184,0.014188,70530.0,70512.0,0.17271351]
[1770433602581,0.014188,70528.0,70512.0,0.17271351]
[1770433604084,0.1888765,70539.0,70514.0,0.17271351]
[1770433604290,0.1888765,70539.0,70520.0,0.17271351]
[1770433604489,0.014187,70535.0,70520.0,0.17271351]
[1770433604785,0.014186,70536.0,70520.0,0.17271351]
[1770433604981,0.1888765,70539.0,70520.0,0.17271351]
[1770433605583,0.014187,70533.0,70520.0,0.17271351]
[1770433607781,0.014188,70530.0,70520.0,0.17271351]
[1770433607986,0.014187,70533.0,70520.0,0.17271351]
[1770433615489,0.014185,70545.0,70520.0,0.17271351]
[1770433615490,0.014186,70538.0,70520.0,0.17271351]
[1770433615695,0.1888765,70537.0,70511.0,0.17271351]
[1770433615895,0.014188,70528.0,70511.0,0.17271351]
[1770433616097,0.1888765,70532.0,70511.0,0.17271351]
[1770433616301,0.1888765,70529.0,70511.0,0.03055351]
[1770433616596,0.014186,70538.0,70505.0,0.17271351]
[1770433616597,0.014189,70522.0,70505.0,0.17271351]
[1770433620500,0.1888765,70510.0,70494.0,7.4e-07]
[1770433620697,0.1888765,70510.0,70481.0,0.35464033]
[1770433620698,0.014193,70502.0,70487.0,0.17271351]
[1770433620903,0.014189,70523.0,70487.0,0.17271351]
[1770433620904,0.1888765,70505.0,70487.0,0.17271351]
[1770433621402,0.014195,70495.0,70476.0,0.014198]
[1770433621601,0.014195,70496.0,70477.0,0.17271351]
[1770433621801,0.014195,70496.0,70477.0,0.18691151]
[1770433622304,0.014195,70491.0,70477.0,0.17271351]
[1770433622903,0.014195,70494.0,70477.0,0.17271351]
[1770433623907,0.1888765,70495.0,70477.0,0.17271351]
[1770433624808,0.014196,70491.0,70477.0,0.17271351]
[1770433625004,0.014195,70494.0,70477.0,0.17271351]
[1770433629904,0.014195,70492.0,70477.0,0.17271351]
[1770433630396,0.014196,70490.0,70477.0,0.17271351]
[1770433630798,0.17881879,70498.0,70477.0,0.17271351]
[1770433631200,0.014195,70493.0,70477.0,0.17271351]
[1770433631609,0.014194,70497.0,70477.0,0.17271351]
[1770433631909,0.17881879,70504.0,70477.0,0.17271351]
[1770433631910,0.014195,70495.0,70477.0,0.17271351]
[1770433633310,0.014194,70498.0,70481.0,0.18265566]
[1770433633516,0.17881879,70508.0,70481.0,0.18265566]
[1770433634412,0.014194,70497.0,70481.0,0.18265566]
[1770433637713,0.014196,70487.0,70474.0,0.18265566]
[1770433637913,0.014197,70484.0,70474.0,0.18265566]
[1770433638212,0.014197,70485.0,70467.0,0.18265566]
[1770433638414,0.014197,70481.0,70467.0,0.18265566]
[1770433639813,0.014197,70484.0,70467.0,0.18265566]
[1770433641018,0.014197,70482.0,70467.0,0.18265566]
[1770433642014,0.17881879,70487.0,70467.0,0.18265566]
[1770433642221,0.014199,70474.0,70458.0,0.18265566]
[1770433642412,0.17881879,70479.0,70458.0,0.18265566]
[1770433642619,0.0142,70467.0,70451.0,0.18265566]
[1770433643117,0.014195,70491.0,70435.0,0.21278419]
[1770433643118,0.014201,70465.0,70435.0,0.18265566]
[1770433643320,0.014205,70444.0,70428.0,0.18265566]
[1770433643916,0.014204,70447.0,70428.0,0.18265566]
[1770433644121,0.014203,70452.0,70432.0,0.18265566]
[1770433644314,0.17881879,70457.0,70432.0,0.18265566]
[1770433644315,0.014205,70446.0,70432.0,0.18265566]
[1770433646615,0.014201,70462.0,70432.0,0.18265566]
[1770433646820,0.014203,70455.0,70432.0,0.18265566]
[1770433647015,0.17881879,70461.0,70434.0,0.18265566]
[1770433647221,0.014204,70450.0,70434.0,0.18265566]
[1770433647420,0.014204,70448.0,70434.0,0.18265566]
[1770433647621,0.17881879,70449.0,70427.0,0.18265566]
[1770433648910,0.014204,70449.0,70427.0,0.19686366]
[1770433649316,0.17881879,70447.0,70408.0,0.18265566]
[1770433649517,0.17881879,70437.0,70408.0,0.18265566]
[1770433650118,0.17881879,70437.0,70414.0,0.18265566]
[1770433650320,0.014203,70453.0,70414.0,0.19686666]
[1770433650321,0.17881879,70444.0,70414.0,0.19686666]
[1770433650526,0.014207,70435.0,70414.0,0.18265566]
[1770433651119,0.014207,70436.0,70416.0,0.18265566]
[1770433651324,0.014207,70436.0,70422.0,0.18265566]
[1770433651825,0.014207,70432.0,70422.0,0.18265566]
[1770433652014,0.014207,70432.0,70421.0,0.0002]
[1770433652424,0.014208,70430.0,70415.0,0.18265566]
[1770433653216,0.014208,70428.0,70415.0,0.18265566]
[1770433653619,0.014208,70428.0,70416.0,0.0002]
[1770433654624,0.014208,70428.0,70415.0,0.18265566]
[1770433654821,0.17881879,70444.0,70415.0,0.18265566]
[1770433655024,0.014206,70437.0,70418.0,0.18265566]
[1770433655223,0.014207,70435.0,70418.0,0.18265566]
[1770433655419,0.014206,70438.0,70418.0,0.18265566]
[1770433655624,0.014205,70441.0,70420.0,0.18265566]
[1770433655825,0.014207,70436.0,70424.0,0.18235037]
[1770433656923,0.014207,70436.0,70424.0,0.18215037]
[1770433657528,0.014208,70429.0,70418.0,0.0002]
[1770433657724,0.014208,70429.0,70409.0,0.1961706]
[1770433658031,0.014208,70429.0,70412.0,0.0002]
[1770433659627,0.014208,70429.0,70412.0,0.18235037]
[1770433660328,0.014208,70429.0,70413.0,0.18235037]
[1770433661732,0.17728647,70432.0,70413.0,0.0002]
[1770433662033,0.17728647,70430.0,70406.0,0.18215037]
[1770433662222,0.014209,70422.0,70406.0,0.18215037]
[1770433662623,0.014209,70422.0,70407.0,0.0002]
[1770433663536,0.014209,70425.0,70407.0,0.0002]
[1770433663734,0.014209,70425.0,70406.0,0.18215037]
[1770433663935,0.014209,70423.0,70406.0,0.18215037]
[1770433664524,0.17728647,70427.0,70406.0,0.18215037]
[1770433664525,0.01421,70421.0,70406.0,0.18215037]
[1770433664938,0.01421,70421.0,70407.0,0.0002]
[1770433665942,0.014209,70424.0,70407.0,0.18235037]
[1770433666132,0.014209,70422.0,70409.0,0.18235037]
[1770433666344,0.21252787,70450.0,70363.0,0.18215037]
[1770433666345,0.17728647,70391.0,70363.0,0.18215037]
[1770433666537,0.17728647,70391.0,70351.0,0.63831059]
[1770433666538,0.014217,70383.0,70367.0,0.18215037]
[1770433666737,0.17728647,70388.0,70367.0,0.18215037]
[1770433667133,0.014218,70379.0,70351.0,0.18215037]
[1770433667335,0.17728647,70388.0,70351.0,0.18215037]
[1770433667336,0.014218,70381.0,70351.0,0.18215037]
[1770433667536,0.17728647,70388.0,70344.0,0.0002]
[1770433667537,0.17728647,70388.0,70363.0,0.18215037]
[1770433667745,0.014216,70387.0,70363.0,0.18215037]
[1770433668242,0.014217,70384.0,70363.0,0.18215037]
[1770433668448,0.014218,70381.0,70363.0,0.18215037]
[1770433669035,0.014215,70393.0,70363.0,0.19637137]
[1770433669235,0.014216,70390.0,70363.0,0.18215037]
[1770433670145,0.014216,70387.0,70363.0,0.18215037]
[1770433670345,0.014213,70406.0,70363.0,0.18215037]
[1770433670346,0.17728647,70392.0,70363.0,0.18215037]
[1770433670533,0.014218,70381.0,70363.0,0.18215037]
[1770433670847,0.014218,70378.0,70363.0,0.18215037]
[1770433671043,0.014217,70382.0,70363.0,0.18215037]
[1770433671445,0.014218,70379.0,70363.0,0.18215037]
[1770433671845,0.014216,70387.0,70363.0,0.18215037]
[1770433672146,0.014216,70391.0,70363.0,0.18215037]
[1770433672840,0.014208,70427.0,70352.0,0.0002]
[1770433672841,0.17728647,70418.0,70374.0,0.18215037]
[1770433673239,0.014214,70400.0,70376.0,0.18215037]
[1770433673748,0.17728647,70404.0,70376.0,0.18215037]
[1770433673941,0.014215,70395.0,70376.0,0.18215037]
[1770433675647,0.014214,70399.0,70376.0,0.19636937]
[1770433677239,0.014213,70403.0,70383.0,0.18215037]
[1770433677443,0.014214,70400.0,70383.0,0.18215037]
[1770433679253,0.014216,70390.0,70375.0,0.18215037]
[1770433679653,0.014216,70387.0,70375.0,0.18215037]
[1770433680251,0.014216,70391.0,70375.0,0.18215037]
[1770433681857,0.17728647,70411.0,70380.0,0.18215037]
[1770433682061,0.014215,70395.0,70380.0,0.18215037]
[1770433682358,0.014215,70393.0,70380.0,0.18215037]
[1770433682561,0.17728647,70405.0,70380.0,0.18215037]
[1770433682861,0.014216,70391.0,70380.0,0.18215037]
[1770433683954,0.19149847,70411.0,70380.0,0.18215037]
[1770433684262,0.014215,70396.0,70380.0,0.18215037]
[1770433685062,0.014215,70394.0,70380.0,0.18215037]
[1770433686561,0.17728647,70403.0,70380.0,0.18215037]
[1770433687359,0.014215,70393.0,70380.0,0.18215037]
[1770433690761,0.42413372,70416.0,70384.0,0.20275961]
[1770433690762,0.014214,70400.0,70384.0,0.20275961]
[1770433692662,0.014213,70406.0,70390.0,0.014216]
[1770433692869,0.014213,70406.0,70391.0,0.20275961]
[1770433695561,0.014212,70409.0,70391.0,0.20275961]
[1770433695971,0.014212,70409.0,70395.0,0.20275961]
[1770433698568,0.19162314,70422.0,70400.0,0.20275961]
[1770433698870,0.014211,70413.0,70400.0,0.20275961]
[1770433699175,0.01421,70420.0,70405.0,0.20275961]
[1770433699470,0.01421,70420.0,70373.0,0.1422]
[1770433699471,0.19162314,70410.0,70392.0,0.20275961]
[1770433699668,0.014212,70407.0,70392.0,0.20275961]
[1770433699859,0.014209,70422.0,70392.0,0.20275961]
[1770433699860,0.19162314,70421.0,70392.0,0.20275961]
[1770433700064,0.014211,70413.0,70392.0,0.21697461]
[1770433700268,0.19162314,70416.0,70392.0,0.21697461]
[1770433700775,0.20583214,70422.0,70392.0,0.21697461]
[1770433700969,0.014212,70410.0,70392.0,0.21697461]
[1770433703773,0.19162314,70430.0,70408.0,0.20275961]
[1770433703972,0.014208,70429.0,70408.0,0.20275961]
[1770433704279,0.014208,70430.0,70414.0,0.20275961]
[1770433706377,0.014207,70433.0,70414.0,0.20275961]
[1770433707373,0.19162314,70445.0,70397.0,0.014214]
[1770433707374,0.014206,70436.0,70417.0,0.20275961]
[1770433707877,0.19162314,70446.0,70419.0,0.20275961]
[1770433708077,0.19162314,70446.0,70422.0,0.20275961]
[1770433708078,0.014205,70442.0,70422.0,0.20275961]
[1770433708671,0.014205,70442.0,70424.0,0.20275961]
[1770433708868,0.014205,70445.0,70426.0,0.20275961]
[1770433709979,0.014205,70443.0,70426.0,0.20275961]
[1770433710581,0.19162314,70453.0,70426.0,0.20275961]
[1770433711469,0.014204,70451.0,70433.0,0.20275961]
[1770433712479,0.014203,70454.0,70435.0,0.20275961]
[1770433713081,0.014203,70452.0,70435.0,0.20275961]
[1770433713979,0.19162314,70461.0,70437.0,0.20275961]
[1770433714279,0.014202,70460.0,70441.0,0.20275961]
[1770433714874,0.19162314,70467.0,70441.0,0.20275961]
[1770433715076,0.0142,70469.0,70447.0,0.21696361]
[1770433715277,0.014201,70464.0,70447.0,0.20275961]
[1770433715479,0.0142,70468.0,70447.0,0.20275961]
[1770433715683,0.014199,70471.0,70447.0,0.20275961]
[1770433715976,0.014199,70471.0,70436.0,0.014206]
[1770433715977,0.19162314,70475.0,70457.0,0.20974442]
[1770433716174,0.21097397,70483.0,70457.0,0.20974442]
[1770433716375,0.014199,70474.0,70457.0,0.20974442]